Workbook

Sheet Start
B1: Om den här mallen
B2: Använd den här mallen för att skapa en delmånadsbudget för hushållet.
B3: Instrumentpanelens kalkylblad innehåller diagram för månads- och årssummor och en tabell som visar inkomster och utgifter under en tvåveckorsperiod.
B4: Ange kategorier i kalkylbladet för datalistor och värden i kalkylbladet för intäkter och utgifter.
B5: Uppdatera pivottabellen i kalkylbladet för budgetrapport.
B6: Obs:
B7: Ytterligare anvisningar finns i kolumn A i alla kalkylblad. Den här texten har avsiktligt dolts. För att ta bort texten markerar du kolumn A och väljer sen TA BORT.
B8: För mer information tabeller trycker du på SKIFT och sen på F10 i en tabell. Välj alternativet TABELL och sen ALTERNATIVTEXT. För pivottabeller trycker du på SKIFT och sen på F10 i en tabell. Välj PIVOTTABELLALTERNATIV och sen fliken ALTERNATIVTEXT.

Sheet Instrumentpanel
A1: Skapa en instrumentpanel för månads- och årssummor och för intäkter och utgifter under en tvåveckorsperiod, i det här kalkylbladet. Instruktioner om hur du använder kalkylbladet finns i cellerna i den här kolumnen. Namnet på arbetsboken står i cellen till höger och namnet på kalkylbladet i cell O1. | B1: Delmånadsbudget för hushåll | O1: INSTRUMENTPANEL
A2: Markera skjutreglaget i cell C2 för att ändra månad i cellen till höger och ändra året i cell I2 genom att markera skjutreglaget i cell J2. | B2: =CHOOSE(Månadsnummer,"JANUARI","FEBRUARI","MARS","APRIL","MAJ","JUNI","JULI","AUGUSTI","SEPTEMBER","OKTOBER","NOVEMBER","DECEMBER") -> DECEMBER | C2: 12 | I2: =YEAR(TODAY()) -> 2022
A3: Etiketten Månadssummor finns i cellen till höger och etiketten Årssummor i cell I3. | B3: TOTAL MÅNADSSUMMA | I3: TOTAL ÅRSSUMMA
A4: Stapeldiagram som jämför totala månadsintäkter med totala månadskostnader finns i cell C4 och stapeldiagram som jämför total årlig inkomst med totala årliga utgifter finns i cell J4. Fler anvisningar finns i cell A8. | B4: INTÄKTER | D4: =MånadsutgifterTotalt -> 0 kr | I4: INTÄKTER | L4: =ÅrsutgifterTotalt -> 10,742 kr
B5: UTGIFTER | D5: =MånadsinkomsterTotalt -> 0 kr | I5: UTGIFTER | L5: =ÅrsinkomsterTotalt -> 13,200 kr
A8: Instrumentpanelstabell som startar i cellen till höger uppdateras automatiskt. | B8: Kategori | C8: JANUARI | D8: FEBRUARI | E8: MARS | F8: APRIL | G8: MAJ | H8: JUNI | I8: JULI | J8: AUGUSTI | K8: SEPTEMBER | L8: OKTOBER | M8: NOVEMBER | N8: DECEMBER | O8: Miniatyrdiagram
B9: Intäkt 1-15 | C9: =SUMIFS(Inkomster[BELOPP],Inkomster[DATUM],"<="&DtMitten,Inkomster[DATUM],">="&DtStart) -> 0.00 kr | D9: =SUMIFS(Inkomster[BELOPP],Inkomster[DATUM],"<="&DtMitten,Inkomster[DATUM],">="&DtStart) -> 0.00 kr | E9: =SUMIFS(Inkomster[BELOPP],Inkomster[DATUM],"<="&DtMitten,Inkomster[DATUM],">="&DtStart) -> 1,300.00 kr | F9: =SUMIFS(Inkomster[BELOPP],Inkomster[DATUM],"<="&DtMitten,Inkomster[DATUM],">="&DtStart) -> 3,100.00 kr | G9: =SUMIFS(Inkomster[BELOPP],Inkomster[DATUM],"<="&DtMitten,Inkomster[DATUM],">="&DtStart) -> 500.00 kr | H9: =SUMIFS(Inkomster[BELOPP],Inkomster[DATUM],"<="&DtMitten,Inkomster[DATUM],">="&DtStart) -> 0.00 kr | I9: =SUMIFS(Inkomster[BELOPP],Inkomster[DATUM],"<="&DtMitten,Inkomster[DATUM],">="&DtStart) -> 0.00 kr | J9: =SUMIFS(Inkomster[BELOPP],Inkomster[DATUM],"<="&DtMitten,Inkomster[DATUM],">="&DtStart) -> 0.00 kr | K9: =SUMIFS(Inkomster[BELOPP],Inkomster[DATUM],"<="&DtMitten,Inkomster[DATUM],">="&DtStart) -> 0.00 kr | L9: =SUMIFS(Inkomster[BELOPP],Inkomster[DATUM],"<="&DtMitten,Inkomster[DATUM],">="&DtStart) -> 0.00 kr | M9: =SUMIFS(Inkomster[BELOPP],Inkomster[DATUM],"<="&DtMitten,Inkomster[DATUM],">="&DtStart) -> 0.00 kr | N9: =SUMIFS(Inkomster[BELOPP],Inkomster[DATUM],"<="&DtMitten,Inkomster[DATUM],">="&DtStart) -> 0.00 kr
B10: Intäkt 16-EOM | C10: =SUMIFS(Inkomster[BELOPP],Inkomster[DATUM],"<="&DtSlut,Inkomster[DATUM],">="&DtMitten+1) -> 0.00 kr | D10: =SUMIFS(Inkomster[BELOPP],Inkomster[DATUM],"<="&DtSlut,Inkomster[DATUM],">="&DtMitten+1) -> 0.00 kr | E10: =SUMIFS(Inkomster[BELOPP],Inkomster[DATUM],"<="&DtSlut,Inkomster[DATUM],">="&DtMitten+1) -> 5,700.00 kr | F10: =SUMIFS(Inkomster[BELOPP],Inkomster[DATUM],"<="&DtSlut,Inkomster[DATUM],">="&DtMitten+1) -> 2,600.00 kr | G10: =SUMIFS(Inkomster[BELOPP],Inkomster[DATUM],"<="&DtSlut,Inkomster[DATUM],">="&DtMitten+1) -> 0.00 kr | H10: =SUMIFS(Inkomster[BELOPP],Inkomster[DATUM],"<="&DtSlut,Inkomster[DATUM],">="&DtMitten+1) -> 0.00 kr | I10: =SUMIFS(Inkomster[BELOPP],Inkomster[DATUM],"<="&DtSlut,Inkomster[DATUM],">="&DtMitten+1) -> 0.00 kr | J10: =SUMIFS(Inkomster[BELOPP],Inkomster[DATUM],"<="&DtSlut,Inkomster[DATUM],">="&DtMitten+1) -> 0.00 kr | K10: =SUMIFS(Inkomster[BELOPP],Inkomster[DATUM],"<="&DtSlut,Inkomster[DATUM],">="&DtMitten+1) -> 0.00 kr | L10: =SUMIFS(Inkomster[BELOPP],Inkomster[DATUM],"<="&DtSlut,Inkomster[DATUM],">="&DtMitten+1) -> 0.00 kr | M10: =SUMIFS(Inkomster[BELOPP],Inkomster[DATUM],"<="&DtSlut,Inkomster[DATUM],">="&DtMitten+1) -> 0.00 kr | N10: =SUMIFS(Inkomster[BELOPP],Inkomster[DATUM],"<="&DtSlut,Inkomster[DATUM],">="&DtMitten+1) -> 0.00 kr
B11: Utgifter 1-15 | C11: =SUMIFS(Utgifter[BELOPP],Utgifter[DATUM],"<="&DtMitten+1,Utgifter[DATUM],">="&DtStart) -> 0.00 kr | D11: =SUMIFS(Utgifter[BELOPP],Utgifter[DATUM],"<="&DtMitten+1,Utgifter[DATUM],">="&DtStart) -> 0.00 kr | E11: =SUMIFS(Utgifter[BELOPP],Utgifter[DATUM],"<="&DtMitten+1,Utgifter[DATUM],">="&DtStart) -> 150.00 kr | F11: =SUMIFS(Utgifter[BELOPP],Utgifter[DATUM],"<="&DtMitten+1,Utgifter[DATUM],">="&DtStart) -> 75.00 kr | G11: =SUMIFS(Utgifter[BELOPP],Utgifter[DATUM],"<="&DtMitten+1,Utgifter[DATUM],">="&DtStart) -> 2,492.00 kr | H11: =SUMIFS(Utgifter[BELOPP],Utgifter[DATUM],"<="&DtMitten+1,Utgifter[DATUM],">="&DtStart) -> 0.00 kr | I11: =SUMIFS(Utgifter[BELOPP],Utgifter[DATUM],"<="&DtMitten+1,Utgifter[DATUM],">="&DtStart) -> 0.00 kr | J11: =SUMIFS(Utgifter[BELOPP],Utgifter[DATUM],"<="&DtMitten+1,Utgifter[DATUM],">="&DtStart) -> 0.00 kr | K11: =SUMIFS(Utgifter[BELOPP],Utgifter[DATUM],"<="&DtMitten+1,Utgifter[DATUM],">="&DtStart) -> 0.00 kr | L11: =SUMIFS(Utgifter[BELOPP],Utgifter[DATUM],"<="&DtMitten+1,Utgifter[DATUM],">="&DtStart) -> 0.00 kr | M11: =SUMIFS(Utgifter[BELOPP],Utgifter[DATUM],"<="&DtMitten+1,Utgifter[DATUM],">="&DtStart) -> 0.00 kr | N11: =SUMIFS(Utgifter[BELOPP],Utgifter[DATUM],"<="&DtMitten+1,Utgifter[DATUM],">="&DtStart) -> 0.00 kr
B12: Utgifter 16-EOM | C12: =SUMIFS(Utgifter[BELOPP],Utgifter[DATUM],"<="&DtSlut,Utgifter[DATUM],">="&DtMitten+1) -> 0.00 kr | D12: =SUMIFS(Utgifter[BELOPP],Utgifter[DATUM],"<="&DtSlut,Utgifter[DATUM],">="&DtMitten+1) -> 1,075.00 kr | E12: =SUMIFS(Utgifter[BELOPP],Utgifter[DATUM],"<="&DtSlut,Utgifter[DATUM],">="&DtMitten+1) -> 5,350.00 kr | F12: =SUMIFS(Utgifter[BELOPP],Utgifter[DATUM],"<="&DtSlut,Utgifter[DATUM],">="&DtMitten+1) -> 1,600.00 kr | G12: =SUMIFS(Utgifter[BELOPP],Utgifter[DATUM],"<="&DtSlut,Utgifter[DATUM],">="&DtMitten+1) -> 0.00 kr | H12: =SUMIFS(Utgifter[BELOPP],Utgifter[DATUM],"<="&DtSlut,Utgifter[DATUM],">="&DtMitten+1) -> 0.00 kr | I12: =SUMIFS(Utgifter[BELOPP],Utgifter[DATUM],"<="&DtSlut,Utgifter[DATUM],">="&DtMitten+1) -> 0.00 kr | J12: =SUMIFS(Utgifter[BELOPP],Utgifter[DATUM],"<="&DtSlut,Utgifter[DATUM],">="&DtMitten+1) -> 0.00 kr | K12: =SUMIFS(Utgifter[BELOPP],Utgifter[DATUM],"<="&DtSlut,Utgifter[DATUM],">="&DtMitten+1) -> 0.00 kr | L12: =SUMIFS(Utgifter[BELOPP],Utgifter[DATUM],"<="&DtSlut,Utgifter[DATUM],">="&DtMitten+1) -> 0.00 kr | M12: =SUMIFS(Utgifter[BELOPP],Utgifter[DATUM],"<="&DtSlut,Utgifter[DATUM],">="&DtMitten+1) -> 0.00 kr | N12: =SUMIFS(Utgifter[BELOPP],Utgifter[DATUM],"<="&DtSlut,Utgifter[DATUM],">="&DtMitten+1) -> 0.00 kr

Sheet Utgifter och inkomster
A1: Skapa en lista över intäkter och utgifter i kalkylbladet. Instruktioner om hur du använder kalkylbladet finns i cellerna i den här kolumnen. Namnet på arbetsboken står i cellen till höger och namnet på kalkylbladet i cell H1. | B1: =Semi_Monthly_Home_Budget_Title -> Delmånadsbudget för hushåll | H1: INTÄKTER OCH UTGIFTER
A2: Etiketten Intäkter finns i cellen till höger och etiketten Utgifter i cell F2. | B2: INTÄKTER | F2: UTGIFTER
A3: Ange uppgifter i tabellen Intäkter som börjar i cellen till höger och i tabellen Utgifter som börjar i cell F3. | B3: DATUM | C3: BESKRIVNING | D3: BELOPP | F3: DATUM | G3: KATEGORI | H3: BESKRIVNING | I3: BELOPP
B4: =TODAY() -> 2022-05-12 | C4: Bonus | D4: 500.00 kr | F4: =TODAY() -> 2022-05-12 | G4: Sjukvård | H4: Försäkring | I4: 500.00 kr
B5: =TODAY()-14 -> 2022-04-28 | C5: Davids lön | D5: 1,300.00 kr | F5: =TODAY()-7 -> 2022-05-05 | G5: Hushåll | H5: Amortering | I5: 1,000.00 kr
B6: =TODAY()-14 -> 2022-04-28 | C6: Ruths lön | D6: 1,300.00 kr | F6: 2022-05-05 | G6: Hushåll | H6: Elektricitet | I6: 100.00 kr
B7: =TODAY()-28 -> 2022-04-14 | C7: Davids lön | D7: 1,500.00 kr | F7: 2022-05-05 | G7: Hushåll | H7: Vatten och avlopp | I7: 50.00 kr
B8: =TODAY()-28 -> 2022-04-14 | C8: Ruths lön | D8: 1,600.00 kr | F8: 2022-05-05 | G8: Hushåll | H8: Sophantering | I8: 25.00 kr
B9: =TODAY()-42 -> 2022-03-31 | C9: Davids lön | D9: 1,300.00 kr | F9: 2022-05-05 | G9: Hushåll | H9: Mobiltelefon | I9: 100.00 kr
B10: =TODAY()-42 -> 2022-03-31 | C10: Ruths lön | D10: 1,300.00 kr | F10: 2022-05-05 | G10: Hushåll | H10: Mobiltelefon | I10: 30.00 kr
B11: =TODAY()-56 -> 2022-03-17 | C11: Davids lön | D11: 1,500.00 kr | F11: 2022-05-05 | G11: Hushåll | H11: Amortering | I11: 50.00 kr
B12: =TODAY()-56 -> 2022-03-17 | C12: Ruths lön | D12: 1,600.00 kr | F12: 2022-05-05 | G12: Hushåll | H12: Mobiltelefon | I12: 50.00 kr
B13: =TODAY()-70 -> 2022-03-03 | C13: Davids lön | D13: 1,300.00 kr | F13: =TODAY()-7 -> 2022-05-05 | G13: Hushåll | H13: Mobiltelefon | I13: 25.00 kr
F14: =TODAY()-8 -> 2022-05-04 | G14: Hushåll | H14: Elektricitet | I14: 100.00 kr
F15: =TODAY()-9 -> 2022-05-03 | G15: Underhållning | H15: Bio | I15: 37.00 kr
F16: =TODAY()-10 -> 2022-05-02 | G16: Mat | H16: Matvaror | I16: 350.00 kr
F17: =TODAY()-11 -> 2022-05-01 | G17: Mat | H17: Restaurangbesök | I17: 75.00 kr
F18: =TODAY()-12 -> 2022-04-30 | G18: Barn | H18: Lunchpengar | I18: 150.00 kr
F19: =TODAY()-13 -> 2022-04-29 | G19: Investeringskonton | H19: Sparande | I19: 250.00 kr
F20: =TODAY()-14 -> 2022-04-28 | G20: Investeringskonton | H20: Investeringskonto | I20: 250.00 kr
F21: =TODAY()-15 -> 2022-04-27 | G21: Privat | H21: Hälsa och träning | I21: 100.00 kr
F22: =TODAY()-16 -> 2022-04-26 | G22: Husdjur | H22: Mat | I22: 50.00 kr
F23: =TODAY()-20 -> 2022-04-22 | G23: Husdjur | H23: Skönhetsvård | I23: 50.00 kr
F24: =TODAY()-20 -> 2022-04-22 | G24: Husdjur | H24: Övrigt | I24: 50.00 kr
F25: =TODAY()-25 -> 2022-04-17 | G25: Transport | H25: Betalning för bil 1 | I25: 300.00 kr
F26: =TODAY()-25 -> 2022-04-17 | G26: Transport | H26: Betalning för bil 2 | I26: 350.00 kr
F27: =TODAY()-25 -> 2022-04-17 | G27: Transport | H27: Bilförsäkring | I27: 50.00 kr
F28: =TODAY()-30 -> 2022-04-12 | G28: Transport | H28: Bränsle | I28: 50.00 kr
F29: =TODAY()-31 -> 2022-04-11 | G29: Transport | H29: Bränsle | I29: 25.00 kr
F30: =TODAY()-42 -> 2022-03-31 | G30: Transport | H30: Betalning för bil 2 | I30: 150.00 kr
F31: =TODAY()-45 -> 2022-03-28 | G31: Hushåll | H31: Amortering | I31: 5,000.00 kr
F32: =TODAY()-50 -> 2022-03-23 | G32: Hushåll | H32: Elektricitet | I32: 200.00 kr
F33: =TODAY()-65 -> 2022-03-08 | G33: Hushåll | H33: Mobiltelefon | I33: 100.00 kr
F34: =TODAY()-70 -> 2022-03-03 | G34: Hushåll | H34: Sophantering | I34: 50.00 kr
F35: =TODAY()-75 -> 2022-02-26 | G35: Hushåll | H35: Amortering | I35: 1,000.00 kr
F36: =TODAY()-78 -> 2022-02-23 | G36: Underhållning | H36: Bio | I36: 75.00 kr

Sheet Budgetrapport
A1: Skapa en budgetrapport i det här kalkylbladet. Instruktioner om hur du använder kalkylbladet finns i cellerna i den här kolumnen. Namnet på arbetsboken står i cellen till höger och namnet på kalkylbladet i cell F1. | B1: =Semi_Monthly_Home_Budget_Title -> Delmånadsbudget för hushåll | F1: BUDGETRAPPORT
A2: Välj år, kvartal, månader eller dagar och använd skjutreglaget i cellen till höger för att få fram pivottabellen för utgifter för den valda perioden. Kategoriutsnitt för att filtrera pivottabelldata finns i cell E2 och beskrivningsutsnitt i cell F2. | B2: Tidslinje som du kan filtrera med finns i den här cellen. | E2: Utsnitt för att filtrera pivottabelldata baserat på kategori finns i den här cellen. | F2: Utsnitt för att filtrera pivottabelldata baserat på beskrivningar finns i den här cellen.
A3: Tips finns i cellen till höger. | B3: Tryck Skift+F10 i pivottabellen för utgifter och välj sen Uppdatera för att uppdatera data i det här bladet eller välj Uppdatera under fliken Analysera.
A4: Etiketten Utgifter finns i cellen till höger. | B4: UTGIFTER
A5: Pivottabellen som visar utgifter startar i cellen till höger. Etiketten Totala kategorisummor finns i cell D4. | B5: Radetiketter | C5: Totalt BELOPP | E5: TOTALA KATEGORISUMMOR
A6: Cirkeldiagram som jämför varje kategorisumma finns i cell D6. | B6: Amortering | C6: 7,050.00 kr
B7: Betalning för bil 1 | C7: 300.00 kr
B8: Betalning för bil 2 | C8: 500.00 kr
B9: Bilförsäkring | C9: 50.00 kr
B10: Bio | C10: 112.00 kr
B11: Bränsle | C11: 75.00 kr
B12: Elektricitet | C12: 400.00 kr
B13: Försäkring | C13: 500.00 kr
B14: Hälsa och träning | C14: 100.00 kr
B15: Investeringskonto | C15: 250.00 kr
B16: Lunchpengar | C16: 150.00 kr
B17: Mat | C17: 50.00 kr
B18: Matvaror | C18: 350.00 kr
B19: Mobiltelefon | C19: 305.00 kr
B20: Restaurangbesök | C20: 75.00 kr
B21: Skönhetsvård | C21: 50.00 kr
B22: Sophantering | C22: 75.00 kr
B23: Sparande | C23: 250.00 kr
B24: Vatten och avlopp | C24: 50.00 kr
B25: Övrigt | C25: 50.00 kr
B26: Totalsumma | C26: 10,742.00 kr

Sheet Datalistor
A1: Ange kategoridata i det här kalkylbladet för att kunna fylla i listrutan i tabellen för utgifter i kalkylbladet Utgifter och Intäkter. Ändra kategorinamn eller beskrivningar under varje kategori för att uppdatera listorna. Instruktioner om hur du använder kalkylbladet finns i cellerna i den här kolumnen. Namnet på arbetsboken står i cellen till höger och namnet på kalkylbladet i cell M1. | B1: =Semi_Monthly_Home_Budget_Title -> Delmånadsbudget för hushåll | M1: DATALISTOR
A2: Tips finns i cellen till höger. | B2: KONFIGURATION Kategoridatan nedan fyller i listrutan i tabellen Utgifter i bladet för Utgifter och Intäkter. Ändra kategorinamnen eller beskrivningarna under varje kategori för att uppdatera listorna.
A3: Ange eller ändra kategorinamn eller beskrivningar under varje kategori i tabellen med start i cellen till höger. | B3: Hushåll | C3: Underhållning | D3: Mat | E3: Gåvor/donationer | F3: Barn | G3: Investeringskonton | H3: Sjukvård | I3: Övrigt | J3: Privat | K3: Husdjur | L3: Skatter | M3: Transport
B4: Amortering | C4: Bio | D4: Matvaror | E4: Välgörenhet 1 | F4: Kläder | G4: IRA | H4: Läkare/klinik | I4: Övrigt | J4: Kläder | K4: Mat | L4: Statlig | M4: Betalning för bil 1
B5: Elektricitet | C5: Filmer/Bio | D5: Restaurangbesök | E5: Välgörenhet 2 | F5: Leksaker/Spel | G5: Sparande | H5: Försäkring | I5: Organisationsavgifter | J5: Hår/naglar | K5: Material | L5: Landsting | M5: Betalning för bil 2
B6: Vatten och avlopp | C6: Musik | E6: Välgörenhet 3 | F6: Lunchpengar | G6: Checkkonto | J6: Kemtvätt | K6: Sjukvård | L6: Kommunal | M6: Bilförsäkring
B7: Sophantering | C7: Konserter/Teater | E7: Gåva | F7: Medlemsavgifter/Avgifter | G7: Pension | J7: Hälsa och träning | K7: Skönhetsvård | L7: Övrigt | M7: Licensavgift/registreringsavgift
B8: Mobiltelefon | C8: Sportevenemang | F8: Skolmaterial | G8: Investeringskonto | J8: Shopping | K8: Övrigt | L8: Advokat | M8: Bränsle

Sheet Pivottabell för kategori (hidden)
B1: Delmånadsbudget för hushåll | M1: KATEGORIPIVOT
B2: Den här pivottabellen är datakällan för pivotdiagrammet kategorisummor i budgetrapporten.
B3: Radetiketter | C3: Totalt BELOPP
B4: Barn | C4: 150 kr
B5: Husdjur | C5: 150 kr
B6: Hushåll | C6: 7,880 kr
B7: Investeringskonton | C7: 500 kr
B8: Mat | C8: 425 kr
B9: Privat | C9: 100 kr
B10: Sjukvård | C10: 500 kr
B11: Transport | C11: 925 kr
B12: Underhållning | C12: 112 kr
B13: Totalsumma | C13: 10,742 kr
